fUSD/lending_fUSD_20260123
["ID","MTS","AMOUNT","RATE_DAILY","PERIOD"]
[403078292,1769132108946,-10000.01,0.00015109,2]
[403078293,1769132109090,-208.52640741,0.00015109,2]
[403078294,1769132109111,-10000.01,0.00015109,2]
[403078295,1769132109194,-10000.01,0.00015109,2]
[403078296,1769132109304,-10000.01,0.00015109,2]
[403078297,1769132109413,-10000.01,0.00015109,2]
[403078299,1769132113369,-154.97974583,0.00015109,2]
[403078300,1769132116309,-209.21893678,0.00015109,2]
[403078303,1769132120337,-293.69562351,0.00015109,2]
[403078305,1769132121855,-413.47485461,0.00015109,2]
[403078308,1769132128604,1112.37173168,0.00015108,5]
[403078309,1769132128917,-163.83968361,0.00015109,2]
[403078310,1769132130991,-196.42290902,0.00015109,2]
[403078314,1769132135009,-254.59051205,0.00015109,2]
[403078318,1769132139996,-231.78535653,0.00015109,2]
[403078321,1769132143010,-171.45407407,0.00015109,2]
[403078322,1769132145056,-175.19791443,0.00015109,2]
[403078323,1769132146218,-300.0,0.00015109,2]
[403078324,1769132147905,-220.75764123,0.00015109,2]
[403078325,1769132150719,-254.84613125,0.00015109,2]
[403078326,1769132152262,-309.67887236,0.00015109,2]
[403078327,1769132154326,-307.95205084,0.00015109,2]
[403078328,1769132160224,-188.4327386,0.00015109,2]
[403078329,1769132161281,300.0,0.00015108,2]
[403078330,1769132161517,300.0,0.00015108,2]
[403078331,1769132161802,300.0,0.00015108,2]
[403078332,1769132164266,-174.33941195,0.00015109,2]
[403078333,1769132166476,300.0,0.00015108,2]
[403078334,1769132167416,-221.08957005,0.00015109,2]
[403078336,1769132171792,-207.93275091,0.00015109,2]
[403078337,1769132174875,-348.75883952,0.00015109,2]
[403078338,1769132175038,8800.01,0.00015009,2]
[403078339,1769132175061,2022.69715362,0.00015009,2]
[403078340,1769132176432,-297.36460161,0.00015109,2]
[403078341,1769132178331,-218.24227358,0.00015109,2]
[403078342,1769132183253,-209.51412181,0.00015109,2]
[403078343,1769132186165,-237.64234053,0.00015109,2]
[403078344,1769132188312,-356.39813618,0.00015109,2]
[403078345,1769132191165,-175.68786292,0.00015109,2]
[403078346,1769132195132,-155.24071074,0.00015109,2]
[403078347,1769132198650,-326.22413417,0.00015109,2]
[403078348,1769132200889,-188.37920448,0.00015109,2]
[403078349,1769132202481,-334.0474921,0.00015109,2]
[403078350,1769132206730,-187.07118978,0.00015109,2]
[403078351,1769132210323,-220.54251313,0.00015109,2]
[403078352,1769132211808,-210.64922317,0.00015109,2]
[403078353,1769132213469,-282.03096931,0.00015109,2]
[403078354,1769132219142,-200.57604426,0.00015109,2]
[403078364,1769132222440,-299.35701369,0.00015109,2]
[403078367,1769132223930,-167.17532628,0.00015109,2]
[403078370,1769132229177,-167.29847352,0.00015109,2]
[403078372,1769132230881,-303.0480494,0.00015109,2]
[403078373,1769132233080,-261.08377461,0.00015109,2]
[403078374,1769132236026,-195.0,0.00015109,2]
[403078375,1769132238369,-291.82611479,0.00015109,2]
[403078376,1769132240059,-192.40805446,0.00015109,2]
[403078381,1769132241649,-160.14991565,0.00015109,2]
[403078384,1769132249317,-314.68327719,0.00015109,2]
[403078386,1769132252005,-290.13870105,0.00015109,2]
[403078389,1769132254569,-212.15196144,0.00015109,2]
[403078391,1769132256147,-330.23379723,0.00015109,2]
[403078393,1769132263456,-339.67852613,0.00015109,2]
[403078394,1769132266224,-322.24508623,0.00015109,2]
[403078395,1769132270106,-178.70738696,0.00015109,2]
[403078396,1769132273286,-177.94743589,0.00015109,2]
[403078398,1769132279539,-198.58781001,0.00015109,2]
[403078399,1769132281246,-248.42152304,0.00015109,2]
[403078403,1769132285242,-203.14186998,0.00015109,2]
[403078404,1769132287446,-151.63403555,0.00015109,2]
[403078405,1769132289276,-310.1415184,0.00015109,2]
[403078406,1769132292131,-208.68743832,0.00015109,2]
[403078408,1769132293773,-422.11677012,0.00015109,2]
[403078409,1769132295397,-153.683692,0.00015109,2]
[403078410,1769132299873,-292.27244388,0.00015109,2]
[403078411,1769132303609,-262.65880764,0.00015109,2]
[403078412,1769132306729,7977.31284638,0.00015009,2]
[403078413,1769132306752,6668.10447132,0.00015009,2]
[403078414,1769132312699,-191.79568348,0.00015109,2]
[403078415,1769132315381,-254.53843363,0.00015109,2]
[403078416,1769132318722,-263.38066428,0.00015109,2]
[403078417,1769132321542,181.33363955,0.00015109,2]
[403078418,1769132322498,-151.67763465,0.00015109,2]
[403078419,1769132325709,-218.91069413,0.00015109,2]
[403078420,1769132327891,-231.39722472,0.00015109,2]
[403078421,1769132329661,-496.47191495,0.00015109,2]
[403078422,1769132332996,-341.44833593,0.00015109,2]
[403078423,1769132338623,-315.73649027,0.00015109,2]
[403078424,1769132341638,300.0,0.00015108,2]
[403078425,1769132342486,300.0,0.00015108,2]
[403078426,1769132343473,-283.58231807,0.00015109,2]
[403078427,1769132345271,194.9037862,0.00015109,2]
[403078428,1769132345378,-345.46533407,0.00015109,2]
[403078429,1769132346895,-168.15643284,0.00015109,2]
[403078430,1769132350041,-200.0,0.00015109,2]
[403078436,1769132352777,-320.69241555,0.00015109,2]
[403078442,1769132353936,200.0,0.00015109,2]
[403078443,1769132354770,-182.57215667,0.00015109,2]
[403078448,1769132357756,-227.68463035,0.00015109,2]
[403078451,1769132359286,-173.72034882,0.00015109,2]
[403078456,1769132361448,-320.8804207,0.00015109,2]
[403078458,1769132365696,-271.9793364,0.00015109,2]
[403078459,1769132372857,-296.88577814,0.00015109,2]
[403078460,1769132374908,-203.96572605,0.00015109,2]
[403078466,1769132378233,-190.28,0.00015109,2]
[403078472,1769132382365,-356.85502261,0.00015109,2]
[403078475,1769132401195,300.0,0.00015108,2]
[403078476,1769132401262,1200.0,0.00015108,2]
[403078477,1769132403341,193.95,0.00015099,2]
[403078478,1769132403968,275.0,0.00015109,2]
[403078480,1769132404909,186.71810293,0.00015099,2]
[403078481,1769132404933,96.72189707,0.00015099,2]
[403078482,1769132405117,283.44,0.00015099,2]
[403078499,1769132461213,300.0,0.00015108,2]
[403078500,1769132463253,354.88004116,0.00015108,2]
[403078502,1769132468207,803.3929185,0.00015009,2]
[403078516,1769132484961,573.95423672,0.00015108,2]
[403078517,1769132485001,573.95423672,0.00015108,2]
[403078518,1769132485035,573.95423672,0.00015108,2]
[403078519,1769132485068,573.95423672,0.00015108,2]
[403078520,1769132485101,573.95423672,0.00015108,2]
[403078521,1769132485140,573.95423672,0.00015108,2]
[403078522,1769132485176,573.95423672,0.00015108,2]
[403078523,1769132485218,573.95423672,0.00015108,2]
[403078524,1769132485254,573.95423672,0.00015108,2]
[403078525,1769132485289,573.95423672,0.00015108,2]
[403078526,1769132485323,500.0,0.00015108,2]
[403078527,1769132485357,573.95423672,0.00015108,2]
[403078528,1769132485395,573.95423672,0.00015108,2]
[403078529,1769132485427,488.91234131,0.00015108,2]
[403078530,1769132485460,285.21196132,0.00015108,2]
[403078531,1769132485484,288.7422754,0.00015108,2]
[403078532,1769132485518,573.95423672,0.00015108,2]
[403078533,1769132485612,573.95423672,0.00015108,2]
[403078534,1769132485672,573.95423672,0.00015108,2]
[403078535,1769132485713,573.95423672,0.00015108,2]
[403078536,1769132485979,573.95423672,0.00015108,2]
[403078537,1769132486016,573.95423672,0.00015108,2]
[403078538,1769132486050,573.95423672,0.00015108,2]
[403078539,1769132486084,573.95423672,0.00015108,2]
[403078540,1769132486121,573.95423672,0.00015108,2]
[403078541,1769132486155,573.95423672,0.00015108,2]
[403078542,1769132486190,573.95423672,0.00015108,2]
[403078543,1769132486223,573.95423672,0.00015108,2]
[403078544,1769132486270,573.95423672,0.00015108,2]
[403078545,1769132486306,573.95423672,0.00015108,2]
[403078546,1769132486344,573.95423672,0.00015108,2]
[403078547,1769132486383,573.95423672,0.00015108,2]
[403078548,1769132486415,527.99993708,0.00015108,2]
[403078549,1769132486441,45.95429964,0.00015108,2]
[403078550,1769132486474,573.95423672,0.00015108,2]
[403078551,1769132486519,573.95423672,0.00015108,2]
[403078552,1769132486557,573.95423672,0.00015108,2]
[403078553,1769132486605,573.95423672,0.00015108,2]
[403078554,1769132486643,573.95423672,0.00015108,2]
[403078555,1769132486676,573.95423672,0.00015108,2]
[403078556,1769132486715,573.95423672,0.00015108,2]
[403078557,1769132486753,573.95423672,0.00015108,2]
[403078558,1769132486789,573.95423672,0.00015108,2]
[403078559,1769132486822,573.95423672,0.00015108,2]
[403078560,1769132486858,573.95423672,0.00015108,2]
[403078561,1769132486898,573.95423672,0.00015108,2]
[403078562,1769132486944,573.95423672,0.00015108,2]
[403078563,1769132487048,573.95423672,0.00015108,2]
[403078564,1769132487082,573.95423672,0.00015108,2]
[403078565,1769132487121,573.95423672,0.00015108,2]
[403078566,1769132487155,573.95423672,0.00015108,2]
[403078567,1769132487189,196.83367612,0.00015108,2]
[403078568,1769132487215,377.1205606,0.00015108,2]
[403078569,1769132487264,573.95423672,0.00015108,2]
[403078570,1769132487298,573.95423672,0.00015108,2]
[403078571,1769132487336,573.95423672,0.00015108,2]
[403078572,1769132487374,573.95423672,0.00015108,2]
[403078573,1769132487407,573.95423672,0.00015108,2]
[403078574,1769132487439,573.95423672,0.00015108,2]
[403078575,1769132487471,573.95423672,0.00015108,2]
[403078576,1769132487513,573.95423672,0.00015108,2]
[403078577,1769132487554,573.95423672,0.00015108,2]
[403078578,1769132487592,573.95423672,0.00015108,2]
[403078579,1769132487636,573.95423672,0.00015108,2]
[403078580,1769132487671,573.95423672,0.00015108,2]
[403078581,1769132487711,573.95423672,0.00015108,2]
[403078582,1769132487756,573.95423672,0.00015108,2]
[403078583,1769132487807,573.95423672,0.00015108,2]
[403078584,1769132487845,573.95423672,0.00015108,2]
[403078585,1769132487882,439.62165188,0.00015108,2]
[403078586,1769132487908,134.33258484,0.00015108,2]
[403078587,1769132491951,827.124,0.00015109,2]
[403078614,1769132512204,9038.55341516,0.00015009,2]
[403078615,1769132512226,867.08178484,0.00015009,2]
[403078623,1769132518435,2500.0,0.00015009,2]
[403078624,1769132521460,186.0,0.00015108,2]
[403078625,1769132521776,300.0,0.00015108,2]
[403078626,1769132521808,300.0,0.00015108,2]
[403078627,1769132523863,500.0,0.00015108,2]
[403078628,1769132524163,500.0,0.00015108,2]
[403078629,1769132524477,500.0,0.00015108,2]
[403078644,1769132560812,500.0,0.00015108,2]
[403078645,1769132561121,392.20319195,0.00015108,2]
[403078646,1769132561156,3454.72502321,0.00015009,2]
[403078647,1769132561178,7675.39371485,0.00015009,2]
[403078648,1769132581204,300.0,0.00015108,2]
[403078655,1769132600062,1200.0,0.00015108,2]
[403078665,1769132641365,300.0,0.00015108,2]
[403078666,1769132656468,524.61628515,0.00015108,2]
[403078667,1769132656493,67.4960024,0.00015108,2]
[403078668,1769132656807,592.11228755,0.00015108,2]
[403078669,1769132657146,592.11228755,0.00015108,2]
[403078670,1769132657743,592.11228755,0.00015108,2]
[403078671,1769132658648,592.11228755,0.00015108,2]
[403078672,1769132658966,592.11228755,0.00015108,2]
[403078673,1769132659526,592.11228755,0.00015108,2]
[403078674,1769132660326,592.11228755,0.00015108,2]
[403078675,1769132660694,592.11228755,0.00015108,2]
[403078676,1769132661640,592.11228755,0.00015108,2]
[403078677,1769132662043,592.11228755,0.00015108,2]
[403078678,1769132662353,592.11228755,0.00015108,2]
[403078679,1769132662672,592.11228755,0.00015108,2]
[403078680,1769132663041,592.11228755,0.00015108,2]
[403078681,1769132663372,420.5675905,0.00015108,2]
[403078682,1769132663418,592.11228755,0.00015108,2]
[403078683,1769132663748,592.11228755,0.00015108,2]
[403078684,1769132664084,630.26209385,0.00015009,2]
[403078685,1769132664108,3165.19510615,0.00015009,2]
[403078686,1769132664233,592.11228755,0.00015108,2]
[403078687,1769132664788,592.11228755,0.00015108,2]
[403078688,1769132665377,592.11228755,0.00015108,2]
[403078689,1769132665816,592.11228755,0.00015108,2]
[403078690,1769132666695,592.11228755,0.00015108,2]
[403078691,1769132666991,592.11228755,0.00015108,2]
[403078692,1769132667352,592.11228755,0.00015108,2]
[403078693,1769132667685,592.11228755,0.00015108,2]
[403078694,1769132668842,592.11228755,0.00015108,2]
[403078695,1769132669166,592.11228755,0.00015108,2]
[403078696,1769132669506,592.11228755,0.00015108,2]
[403078790,1769132680876,177.03252549,0.00015109,2]
[403078798,1769132701154,144.54720531,0.00015108,2]
[403078799,1769132701178,155.45279469,0.00015108,2]
[403078800,1769132701210,1200.0,0.00015108,2]
[403078801,1769132701612,300.0,0.00015108,2]
[403078802,1769132703328,300.0,0.00015108,2]
[403078809,1769132717806,1260.65,0.00015109,2]
[403078810,1769132729916,361.82415387,0.00015108,2]
[403078811,1769132761233,300.0,0.00015108,2]
[403078817,1769132789104,500.0,0.00015108,2]
[403078818,1769132801921,500.0,0.00015108,2]
[403078819,1769132801963,500.0,0.00015108,2]
[403078820,1769132802005,500.0,0.00015108,2]
[403078821,1769132802041,500.0,0.00015108,2]
[403078822,1769132802083,421.46710784,0.00015108,2]
[403078823,1769132802117,500.0,0.00015108,2]
[403078824,1769132802407,500.0,0.00015108,2]
[403078825,1769132802458,500.0,0.00015108,2]
[403078826,1769132802495,500.0,0.00015108,2]
[403078827,1769132802535,500.0,0.00015108,2]
[403078828,1769132802568,500.0,0.00015108,2]
[403078833,1769132813531,200.6159436,0.00015009,2]
[403078834,1769132813555,10000.01,0.00015009,2]
[403078835,1769132813578,7238.0802564,0.00015009,2]
[403078836,1769132816914,2761.9297436,0.00015009,2]
[403078837,1769132816937,10000.01,0.00015009,2]
[403078838,1769132816960,2321.05413396,0.00015009,2]
[403078839,1769132819804,2500.0,0.00015009,2]
[403078842,1769132834432,538.55636603,0.00015108,2]
[403078843,1769132881755,300.0,0.00015108,2]
[403078844,1769132881955,300.0,0.00015108,2]
[403078850,1769132902986,2423.53,0.00013008,2]
[403078852,1769132914138,1616.86950001,0.00015009,2]
[403078853,1769132914164,10000.01,0.00015009,2]
[403078854,1769132914190,10000.01,0.00015009,2]
[403078855,1769132914217,10000.01,0.00015009,2]
[403078856,1769132914243,10000.01,0.00015009,2]
[403078857,1769132914268,10000.01,0.00015009,2]
[403078858,1769132914294,10000.01,0.00015009,2]
[403078859,1769132914320,10000.01,0.00015009,2]
[403078860,1769132914346,10000.01,0.00015009,2]
[403078861,1769132914371,10000.01,0.00015009,2]
[403078864,1769132915691,-249.73100501,0.00015009,2]
[403078865,1769132917996,-184.38641674,0.00015009,2]
[403078866,1769132920150,-346.98688801,0.00015009,2]
[403078867,1769132922837,-171.63552027,0.00015009,2]
[403078868,1769132925052,-235.34687346,0.00015009,2]
[403078869,1769132926802,-399.30939117,0.00015009,2]
[403078870,1769132929080,-267.10960323,0.00015009,2]
[403078872,1769132931129,-386.55543113,0.00015009,2]
[403078873,1769132934034,-232.09640326,0.00015009,2]
[403078874,1769132936052,-183.85483595,0.00015009,2]
[403078876,1769132939359,-202.34013256,0.00015009,2]
[403078885,1769132943920,-244.73424043,0.00015009,2]
[403078886,1769132946565,201.0,0.00014256,2]
[403078887,1769132947667,9799.01,0.00015009,2]
[403078888,1769132947709,810.54037099,0.00015009,2]
[403078889,1769132947747,-153.76731991,0.00015009,2]
[403078893,1769132951141,-206.20401852,0.00015009,2]
[403078894,1769132952973,-264.38189314,0.00015009,2]
[403078895,1769132955225,-274.14035493,0.00015009,2]
[403078896,1769132956603,-9226.00471803,0.00015009,2]
[403078897,1769132956661,-10000.01,0.00015009,2]
[403078898,1769132956687,-10000.01,0.00015009,2]
[403078899,1769132958544,-192.88371431,0.00015009,2]
[403078900,1769132960645,-10000.01,0.00015009,2]
[403078901,1769132960976,-10000.01,0.00015009,2]
[403078902,1769132961037,-10000.01,0.00015009,2]
[403078903,1769132961134,-10000.01,0.00015009,2]
[403078904,1769132961253,-168.59545555,0.00015009,2]
[403078905,1769132961310,-10000.01,0.00015009,2]
[403078906,1769132961459,-10000.01,0.00015009,2]
[403078907,1769132961589,-10000.01,0.00015009,2]
[403078908,1769132961768,-10000.01,0.00015009,2]
[403078909,1769132962023,-10000.01,0.00015009,2]
[403078910,1769132962167,-10000.01,0.00015009,2]
[403078911,1769132962282,-10000.01,0.00015009,2]
[403078912,1769132962399,-10000.01,0.00015009,2]
[403078913,1769132962539,-10000.01,0.00015009,2]
[403078914,1769132962667,-10000.01,0.00015009,2]
[403078915,1769132962847,-10000.01,0.00015009,2]
[403078916,1769132963608,-240.29600961,0.00015009,2]
[403078919,1769132966934,-238.55936507,0.00015009,2]
[403078920,1769132970224,-418.04215762,0.00015009,2]
[403078921,1769132974563,-350.63134384,0.00015009,2]
[403078922,1769132977435,-286.74145146,0.00015009,2]
[403078923,1769132982027,-198.0,0.00014995,2]
[403078924,1769132984028,-373.67418504,0.00014995,2]
[403078925,1769132987998,-212.01894134,0.00014995,2]
[403078926,1769132993970,-148.64605828,0.00014995,2]
[403078927,1769132993997,-39.16060193,0.00015009,2]
[403078928,1769133001259,-473.10450358,0.00015009,2]
[403078929,1769133001532,1200.0,0.00015008,2]
[403078930,1769133001600,300.0,0.00015008,2]
[403078932,1769133003788,3942.72368034,0.00015009,2]
[403078933,1769133003828,787.75432809,0.00015009,2]
[403078934,1769133003879,2050.90795602,0.00015009,2]
[403078935,1769133003920,275.0,0.00015009,2]
[403078936,1769133004152,-245.95516537,0.00015009,2]
[403078937,1769133005594,182.93,0.00014999,2]
[403078938,1769133005785,182.93,0.00014999,2]
[403078939,1769133006990,809.26,0.00014999,2]
[403078941,1769133007026,-219.9643608,0.00015009,2]
[403078942,1769133007191,268.50403555,0.00014999,2]
[403078943,1769133007217,540.75596445,0.00014999,2]
[403078944,1769133009939,-200.95907073,0.00015009,2]
[403078945,1769133012234,-327.37123182,0.00015009,2]
[403078952,1769133016143,-280.0356392,0.00015009,2]
[403078960,1769133020334,-288.3268377,0.00015009,2]
[403078961,1769133027699,-166.16560413,0.00015009,2]
[403078962,1769133030609,-287.98105866,0.00015009,2]
[403078964,1769133031295,-2286.90336051,0.00015009,2]
[403078965,1769133031306,-879.45743612,0.00015009,2]
[403078966,1769133031349,-12108.15363363,0.00015009,2]
[403078967,1769133031454,-115633.7648624,0.00015009,2]
[403078968,1769133031467,-10087.95380277,0.00015009,2]
[403078969,1769133031479,-53246.44361969,0.00015009,2]
[403078970,1769133031506,-445.82269084,0.00015009,2]
[403078971,1769133031560,-572.0678,0.00015009,2]
[403079000,1769133033154,-211.8076578,0.00015009,2]
[403079001,1769133035470,-286.16054555,0.00015009,2]
[403079005,1769133037390,-3379.8,0.00015009,2]
[403079006,1769133037402,-140408.45886317,0.00015009,2]
[403079007,1769133037495,-6075.94110169,0.00015009,2]
[403079008,1769133037507,-571.95969285,0.00015009,2]
[403079009,1769133037532,-374534.81681584,0.00015009,2]
[403079010,1769133037547,-4567.0161,0.00015009,2]
[403079011,1769133037557,-2500.0,0.00015009,2]
[403079012,1769133037566,-195.0,0.00015034,2]
[403079013,1769133037579,-250.0,0.00015059,2]
[403079014,1769133037590,-512.03687767,0.00015108,2]
[403079015,1769133037600,-1000.0,0.00015109,2]
[403079016,1769133037613,-500.0,0.00015109,2]
[403079017,1769133037623,-33244.7258,0.00015109,2]
[403079018,1769133037633,-769.61,0.00015208,2]
[403079019,1769133037643,-769.61,0.00015208,2]
[403079020,1769133037652,-769.61,0.00015208,2]
[403079022,1769133037661,-769.61,0.00015208,2]
[403079023,1769133037671,-500.0,0.00015208,2]
[403079024,1769133037680,-189.64974817,0.00015208,2]
[403079025,1769133037690,-500.0,0.00015308,2]
[403079026,1769133037699,-500.0,0.00015308,2]
[403079027,1769133037708,-501.60651233,0.00015308,2]
[403079029,1769133037717,-298.18754647,0.00015308,2]
[403079031,1769133037726,-500.0,0.00015308,2]
[403079033,1769133037736,-308.83234884,0.00015308,2]
[403079035,1769133037745,-500.0,0.00015308,2]
[403079037,1769133037755,-500.0,0.00015308,2]
[403079039,1769133037764,-500.0,0.00015308,2]
[403079041,1769133037773,-500.0,0.00015308,2]
[403079043,1769133037783,-611.97077891,0.00015308,2]
[403079045,1769133037792,-150.97639818,0.00015308,2]
[403079047,1769133037801,-748.26,0.00015308,2]
[403079049,1769133037811,-15082.99387755,0.0001533,2]
[403079051,1769133037820,-10609.55037097,0.0001533,2]
[403079053,1769133037830,-1049.75837967,0.00015427,2]
[403079055,1769133037839,-540.08233462,0.00015552,2]
[403079057,1769133037848,-748.26,0.00015582,2]
[403079059,1769133037858,-353.67739576,0.0001565,2]
[403079061,1769133037866,-500.0,0.0001565,2]
[403079063,1769133037876,-155.81778291,0.0001565,2]
[403079065,1769133037885,-591.63498088,0.0001565,2]
[403079067,1769133037895,-15082.99387755,0.00015651,2]
[403079069,1769133037904,-10609.55037097,0.00015651,2]
[403079071,1769133037913,-55304.82690331,0.00015709,2]
[403079073,1769133037923,-748.26,0.00015856,2]
[403079075,1769133037933,-168.73,0.00015886,2]
[403079077,1769133037943,-212.46,0.00015918,2]
[403079079,1769133037951,-200.0,0.00015927,2]
[403079081,1769133037960,-15082.99387755,0.00015973,2]
[403079083,1769133037970,-10609.55037097,0.00015973,2]
[403079085,1769133037980,-180.0,0.00016073,2]
[403079087,1769133037989,-172.27826242,0.00016073,2]
[403079089,1769133037998,-748.26,0.0001613,2]
[403079091,1769133038008,-510.0,0.00016226,2]
[403079093,1769133038018,-15082.99387755,0.00016294,2]
[403079095,1769133038027,-10609.55037097,0.00016294,2]
[403079097,1769133038037,-166.66,0.00016353,2]
[403079099,1769133038048,-748.26,0.00016404,2]
[403079101,1769133038057,-325.0,0.00016425,2]
[403079103,1769133038067,-2770.32897275,0.00016427,2]
[403079105,1769133038076,-4887.18868552,0.00016427,2]
[403079107,1769133038087,-7310.94198999,0.00016427,2]
[403079109,1769133038098,-9891.9612,0.00016427,2]
[403079111,1769133038107,-500.0,0.00016438,2]
[403079112,1769133038116,-500.0,0.00016438,2]
[403079113,1769133038126,-500.0,0.00016438,2]
[403079114,1769133038135,-500.0,0.00016438,2]
[403079115,1769133038144,-500.0,0.00016438,2]
[403079116,1769133038154,-500.0,0.00016438,2]
[403079117,1769133038163,-500.0,0.00016438,2]
[403079118,1769133038172,-503.2074623,0.00016438,2]
[403079119,1769133038183,-500.0,0.00016438,2]
[403079120,1769133038193,-500.0,0.00016438,2]
[403079121,1769133038202,-500.0,0.00016438,2]
[403079122,1769133038212,-500.0,0.00016438,2]
[403079123,1769133038221,-500.0,0.00016438,2]
[403079124,1769133038232,-500.0,0.00016438,2]
[403079125,1769133038242,-500.0,0.00016438,2]
[403079126,1769133038254,-500.0,0.00016438,2]
[403079127,1769133038264,-500.0,0.00016438,2]
[403079128,1769133038274,-500.0,0.00016438,2]
[403079129,1769133038284,-500.0,0.00016438,2]
[403079130,1769133038294,-500.0,0.00016438,2]
[403079131,1769133038303,-500.0,0.00016438,2]
[403079132,1769133038314,-500.0,0.00016438,2]
[403079133,1769133038323,-500.0,0.00016438,2]
[403079134,1769133038332,-500.0,0.00016438,2]
[403079135,1769133038342,-500.0,0.00016438,2]
[403079136,1769133038351,-500.0,0.00016438,2]
[403079137,1769133038361,-500.0,0.00016438,2]
[403079138,1769133038371,-500.0,0.00016438,2]
[403079139,1769133038380,-500.0,0.00016438,2]
[403079140,1769133038390,-500.0,0.00016438,2]
[403079141,1769133038399,-500.0,0.00016438,2]
[403079142,1769133038410,-500.0,0.00016438,2]
[403079143,1769133038419,-500.0,0.00016438,2]
[403079144,1769133038429,-500.0,0.00016438,2]
[403079145,1769133038438,-500.0,0.00016438,2]
[403079146,1769133038447,-500.0,0.00016438,2]
[403079147,1769133038457,-500.0,0.00016438,2]
[403079148,1769133038466,-500.0,0.00016438,2]
[403079149,1769133038475,-500.0,0.00016438,2]
[403079150,1769133038485,-500.0,0.00016438,2]
[403079151,1769133038494,-500.0,0.00016438,2]
[403079152,1769133038504,-500.0,0.00016438,2]
[403079153,1769133038513,-500.0,0.00016438,2]
[403079154,1769133038522,-500.0,0.00016438,2]
[403079155,1769133038535,-500.0,0.00016438,2]
[403079156,1769133038546,-500.0,0.00016438,2]
[403079157,1769133038555,-500.0,0.00016438,2]
[403079158,1769133038564,-500.0,0.00016438,2]
[403079159,1769133038573,-500.0,0.00016438,2]
[403079160,1769133038582,-1962.51630276,0.00016441,2]
[403079161,1769133038591,-1456.76,0.00016448,2]
[403079162,1769133038600,-1456.76,0.00016492,2]
[403079163,1769133038610,-1680.0,0.00016509,2]
[403079164,1769133038619,-250.0,0.0001651,2]
[403079165,1769133038628,-250.0,0.0001651,2]
[403079166,1769133038637,-195.0,0.0001651,2]
[403079167,1769133038646,-600.0,0.0001651,2]
[403079168,1769133038655,-212.46,0.00016515,2]
[403079169,1769133038664,-303.0,0.00016533,2]
[403079170,1769133038674,-1456.76,0.00016535,2]
[403079171,1769133038683,-1456.76,0.00016578,2]
[403079172,1769133038692,-500.0,0.00016614,2]
[403079173,1769133038701,-15082.99387755,0.00016615,2]
[403079174,1769133038711,-10609.55037097,0.00016615,2]
[403079175,1769133038721,-193.63794893,0.0001662,2]
[403079176,1769133038731,-303.06624798,0.0001662,2]
[403079177,1769133038740,-195.0,0.0001662,2]
[403079178,1769133038750,-2553.79926558,0.0001662,2]
[403079179,1769133038759,-1456.76,0.00016621,2]
[403079180,1769133038768,-1776.33917684,0.00016656,2]
[403079181,1769133038777,-1456.76,0.00016665,2]
[403079182,1769133038787,-748.30172107,0.00016678,2]
[403079183,1769133038796,-255.33658603,0.000167,3]
[403079184,1769133038805,-1456.76,0.00016708,2]
[403079185,1769133038814,-379.84594958,0.00016712,2]
[403079186,1769133038823,-540.08233462,0.00016726,2]
[403079187,1769133038832,-1456.76,0.00016751,2]
[403079188,1769133038841,-150.0,0.00016791,2]
[403079189,1769133038851,-304.05041746,0.00016794,2]
[403079190,1769133038860,-1456.76,0.00016795,2]
[403079191,1769133038870,-1456.76,0.00016838,2]
[403079192,1769133038882,-1456.76,0.00016881,2]